[Event "Titled Tuesday Blitz June 20 Early 2023"]
[White "Fus, Jakub"]
[Black "Makhmudov, Shukhrat"]
[WhiteFideId "1193023"]
[BlackFideId "14200775"]
[WhiteElo "2335"]
[BlackElo "2135"]
[Result "1-0"]
[Round "1"]
[TimeControl "180+2"]
[Date "2023.06.20"]
[WhiteClock "0:00:43"]
[BlackClock "0:00:13"]
[Board "111"]

1. d4 {[%clk 0:02:56]}  Nf6 {[%clk 0:02:57]} 2. c4 {[%clk 0:02:56]}  e6 {[%clk 0:02:57]} 3. Nf3 {[%clk 0:02:56]}  d5 {[%clk 0:02:58]} 4. g3 {[%clk 0:02:56]}  Bb4+ {[%clk 0:02:57]} 5. Bd2 {[%clk 0:02:56]}  Be7 {[%clk 0:02:57]} 6. Bg2 {[%clk 0:02:55]}  O-O {[%clk 0:02:58]} 7. O-O {[%clk 0:02:55]}  c6 {[%clk 0:02:58]} 8. Qc2 {[%clk 0:02:55]}  Nbd7 {[%clk 0:02:59]} 9. Rd1 {[%clk 0:02:54]}  Ne4 {[%clk 0:02:59]} 10. Ne1 {[%clk 0:02:41]}  Nxd2 {[%clk 0:02:58]} 11. Nxd2 {[%clk 0:02:42]}  Nf6 {[%clk 0:02:58]} 12. e3 {[%clk 0:02:38]}  b6 {[%clk 0:02:56]} 13. Nd3 {[%clk 0:02:36]}  Bb7 {[%clk 0:02:56]} 14. b4 {[%clk 0:02:36]}  a5 {[%clk 0:02:42]} 15. a3 {[%clk 0:02:34]}  dxc4 {[%clk 0:02:05]} 16. Nxc4 {[%clk 0:02:27]}  axb4 {[%clk 0:02:02]} 17. axb4 {[%clk 0:02:25]}  Qc7 {[%clk 0:01:59]} 18. Nce5 {[%clk 0:02:13]}  Rfc8 {[%clk 0:01:50]} 19. Rxa8 {[%clk 0:02:06]}  Bxa8 {[%clk 0:01:50]} 20. Rc1 {[%clk 0:02:05]}  Nd5 {[%clk 0:01:35]} 21. Qa4 {[%clk 0:02:02]}  f6 {[%clk 0:01:27]} 22. Nxc6 {[%clk 0:01:36]}  Bxc6 {[%clk 0:01:02]} 23. b5 {[%clk 0:01:35]}  Ra8 {[%clk 0:00:29]} 24. Qd1 {[%clk 0:01:29]}  Ra3 {[%clk 0:00:20]} 25. Rxc6 {[%clk 0:01:27]}  Qd7 {[%clk 0:00:19]} 26. Bh3 {[%clk 0:01:23]}  f5 {[%clk 0:00:19]} 27. Ne5 {[%clk 0:01:19]}  Qa7 {[%clk 0:00:17]} 28. Qh5 {[%clk 0:01:02]}  g6 {[%clk 0:00:16]} 29. Nxg6 {[%clk 0:00:50]}  Ra1+ {[%clk 0:00:15]} 30. Bf1 {[%clk 0:00:45]}  hxg6 {[%clk 0:00:11]} 31. Qxg6+ {[%clk 0:00:45]}  Kf8 {[%clk 0:00:12]} 32. Rc8+ {[%clk 0:00:45]}  Bd8 {[%clk 0:00:12]} 33. Rxd8+ {[%clk 0:00:45]}  Ke7 {[%clk 0:00:13]} 34. Re8+ {[%clk 0:00:43]}  Kd6 {[%clk 0:00:13]} 35. Qxe6+ {[%clk 0:00:43]}  Kc7 {[%clk 0:00:13]} 36. Qc6# {[%clk 0:00:43]} 1-0


[Site "https://www.chess.com"]

[Event "Titled Tuesday Blitz June 20 Early 2023"]
[White "Anuj Shrivatri"]
[Black "TomLiu777"]
[WhiteFideId "35070924"]
[WhiteElo "2298"]
[BlackElo "2407"]
[Result "0-1"]
[Round "1"]
[TimeControl "180+2"]
[Date "2023.06.20"]
[WhiteClock "0:01:16"]
[BlackClock "0:01:46"]
[Board "113"]

1. Nf3 {[%clk 0:03:00]}  Nf6 {[%clk 0:02:58]} 2. d4 {[%clk 0:02:58]}  c5 {[%clk 0:02:58]} 3. d5 {[%clk 0:02:57]}  e6 {[%clk 0:02:57]} 4. Nc3 {[%clk 0:02:56]}  exd5 {[%clk 0:02:58]} 5. Nxd5 {[%clk 0:02:57]}  Nxd5 {[%clk 0:02:58]} 6. Qxd5 {[%clk 0:02:57]}  Nc6 {[%clk 0:02:56]} 7. e4 {[%clk 0:02:55]}  d6 {[%clk 0:02:49]} 8. Bb5 {[%clk 0:02:00]}  Qa5+ {[%clk 0:02:41]} 9. Bd2 {[%clk 0:01:39]}  Qxb5 {[%clk 0:02:40]} 10. Bc3 {[%clk 0:01:39]}  Be6 {[%clk 0:02:39]} 11. Qg5 {[%clk 0:01:39]}  Be7 {[%clk 0:02:31]} 12. Qxg7 {[%clk 0:01:39]}  O-O-O {[%clk 0:02:32]} 13. Qh6 {[%clk 0:01:37]}  Rhg8 {[%clk 0:02:28]} 14. Rg1 {[%clk 0:01:37]}  Bg4 {[%clk 0:02:22]} 15. a4 {[%clk 0:01:37]}  Qa6 {[%clk 0:02:22]} 16. Qe3 {[%clk 0:01:34]}  Bxf3 {[%clk 0:02:18]} 17. Qxf3 {[%clk 0:01:34]}  Qc4 {[%clk 0:01:59]} 18. b3 {[%clk 0:01:32]}  Qe6 {[%clk 0:01:58]} 19. O-O-O {[%clk 0:01:32]}  Ne5 {[%clk 0:01:54]} 20. Qe2 {[%clk 0:01:17]}  Bf6 {[%clk 0:01:48]} 21. Rd5 {[%clk 0:01:16]}  Nc6 {[%clk 0:01:47]} 22. Bxf6 {[%clk 0:01:16]}  Qxf6 {[%clk 0:01:46]} 23. c3 {[%clk 0:01:16]} 0-1


[Site "https://www.chess.com"]

[Event "Titled Tuesday Blitz June 20 Early 2023"]
[White "Darini, Pouria"]
[Black "Ramirez Vido, Robert Yorisan"]
[WhiteFideId "12502200"]
[BlackFideId "3513823"]
[WhiteElo "2482"]
[BlackElo "2404"]
[Result "1-0"]
[Round "1"]
[TimeControl "180+2"]
[Date "2023.06.20"]
[WhiteClock "0:00:13"]
[BlackClock "0:00:00"]
[Board "115"]

1. d4 {[%clk 0:03:00]}  g6 {[%clk 0:02:56]} 2. Nf3 {[%clk 0:03:00]}  Nf6 {[%clk 0:02:56]} 3. Bf4 {[%clk 0:02:59]}  Bg7 {[%clk 0:02:55]} 4. e3 {[%clk 0:03:00]}  O-O {[%clk 0:02:55]} 5. Be2 {[%clk 0:03:01]}  d6 {[%clk 0:02:53]} 6. c3 {[%clk 0:03:01]}  Nbd7 {[%clk 0:02:43]} 7. O-O {[%clk 0:02:59]}  Re8 {[%clk 0:02:41]} 8. h3 {[%clk 0:02:56]}  b6 {[%clk 0:02:37]} 9. a4 {[%clk 0:02:56]}  a6 {[%clk 0:02:35]} 10. Bc4 {[%clk 0:02:54]}  Bb7 {[%clk 0:02:27]} 11. Bh2 {[%clk 0:02:49]}  e5 {[%clk 0:02:17]} 12. dxe5 {[%clk 0:02:40]}  Nxe5 {[%clk 0:02:16]} 13. Nxe5 {[%clk 0:02:38]}  dxe5 {[%clk 0:02:16]} 14. Nd2 {[%clk 0:02:17]}  Qe7 {[%clk 0:02:07]} 15. Nf3 {[%clk 0:02:07]}  e4 {[%clk 0:01:51]} 16. Ne5 {[%clk 0:01:46]}  Nd5 {[%clk 0:01:30]} 17. Bxd5 {[%clk 0:01:31]}  Bxd5 {[%clk 0:01:18]} 18. Nxg6 {[%clk 0:01:29]}  hxg6 {[%clk 0:00:40]} 19. Qxd5 {[%clk 0:01:28]}  Rad8 {[%clk 0:00:41]} 20. Qc4 {[%clk 0:01:23]}  Rd2 {[%clk 0:00:40]} 21. Qxc7 {[%clk 0:01:13]}  Qxc7 {[%clk 0:00:29]} 22. Bxc7 {[%clk 0:01:14]}  Rxb2 {[%clk 0:00:30]} 23. Rab1 {[%clk 0:01:11]}  Bxc3 {[%clk 0:00:21]} 24. Rxb2 {[%clk 0:01:11]}  Bxb2 {[%clk 0:00:22]} 25. Rb1 {[%clk 0:01:11]}  Be5 {[%clk 0:00:20]} 26. Bxe5 {[%clk 0:01:07]}  Rxe5 {[%clk 0:00:20]} 27. Rxb6 {[%clk 0:01:07]}  Ra5 {[%clk 0:00:20]} 28. Rb4 {[%clk 0:01:07]}  f5 {[%clk 0:00:20]} 29. g4 {[%clk 0:00:50]}  Kf7 {[%clk 0:00:19]} 30. Kg2 {[%clk 0:00:49]}  Ke6 {[%clk 0:00:18]} 31. Kg3 {[%clk 0:00:47]}  Ke5 {[%clk 0:00:17]} 32. gxf5 {[%clk 0:00:39]}  gxf5 {[%clk 0:00:18]} 33. h4 {[%clk 0:00:39]}  Rc5 {[%clk 0:00:13]} 34. Rb6 {[%clk 0:00:38]}  Ra5 {[%clk 0:00:04]} 35. Rb4 {[%clk 0:00:31]}  Rc5 {[%clk 0:00:04]} 36. Rb8 {[%clk 0:00:20]}  Ra5 {[%clk 0:00:04]} 37. Re8+ {[%clk 0:00:21]}  Kf6 {[%clk 0:00:04]} 38. Rf8+ {[%clk 0:00:19]}  Kg6 {[%clk 0:00:03]} 39. Kf4 {[%clk 0:00:18]}  Rxa4 {[%clk 0:00:01]} 40. Rxf5 {[%clk 0:00:18]}  Ra2 {[%clk 0:00:02]} 41. h5+ {[%clk 0:00:13]}  Kh6 {[%clk 0:00:00]} 42. Kxe4 {[%clk 0:00:13]} 1-0


[Site "https://www.chess.com"]

[Event "Titled Tuesday Blitz June 20 Early 2023"]
[White "Kupervaser, Erez"]
[Black "Atakhan, Abtin"]
[WhiteFideId "2814587"]
[BlackFideId "22502203"]
[WhiteElo "2216"]
[BlackElo "2008"]
[Result "0-1"]
[Round "1"]
[TimeControl "180+2"]
[Date "2023.06.20"]
[WhiteClock "0:00:49"]
[BlackClock "0:01:14"]
[Board "116"]

1. e4 {[%clk 0:03:00]}  c5 {[%clk 0:02:59]} 2. Nf3 {[%clk 0:02:59]}  d6 {[%clk 0:03:00]} 3. Bb5+ {[%clk 0:02:59]}  Nd7 {[%clk 0:03:00]} 4. O-O {[%clk 0:02:58]}  a6 {[%clk 0:03:00]} 5. Bd3 {[%clk 0:02:58]}  Ngf6 {[%clk 0:02:57]} 6. c3 {[%clk 0:02:57]}  b5 {[%clk 0:02:57]} 7. a4 {[%clk 0:02:57]}  Bb7 {[%clk 0:02:55]} 8. axb5 {[%clk 0:02:56]}  axb5 {[%clk 0:02:56]} 9. Rxa8 {[%clk 0:02:56]}  Qxa8 {[%clk 0:02:57]} 10. Na3 {[%clk 0:02:56]}  b4 {[%clk 0:02:43]} 11. Nb5 {[%clk 0:02:56]}  Qa5 {[%clk 0:02:40]} 12. Bc4 {[%clk 0:02:49]}  e6 {[%clk 0:02:31]} 13. d4 {[%clk 0:02:25]}  Nxe4 {[%clk 0:02:24]} 14. Ng5 {[%clk 0:01:57]}  Be7 {[%clk 0:01:56]} 15. Nxe4 {[%clk 0:01:54]}  Bxe4 {[%clk 0:01:57]} 16. dxc5 {[%clk 0:01:54]}  d5 {[%clk 0:01:46]} 17. c6 {[%clk 0:01:26]}  O-O {[%clk 0:01:26]} 18. Re1 {[%clk 0:01:05]}  Ne5 {[%clk 0:01:19]} 19. Nd4 {[%clk 0:00:49]}  Nxc4 {[%clk 0:01:14]} 0-1


[Site "https://www.chess.com"]

[Event "Titled Tuesday Blitz June 20 Early 2023"]
[White "Petrosian, Karlen"]
[Black "Bauman_Guy"]
[WhiteFideId "4176146"]
[WhiteElo "2345"]
[BlackElo "2400"]
[Result "1-0"]
[Round "1"]
[TimeControl "180+2"]
[Date "2023.06.20"]
[WhiteClock "0:00:35"]
[BlackClock "0:00:36"]
[Board "117"]

1. e4 {[%clk 0:02:59]}  c5 {[%clk 0:02:59]} 2. Be2 {[%clk 0:02:59]}  Nc6 {[%clk 0:02:58]} 3. f4 {[%clk 0:02:59]}  g6 {[%clk 0:02:58]} 4. Nf3 {[%clk 0:02:59]}  Bg7 {[%clk 0:02:58]} 5. O-O {[%clk 0:03:00]}  d6 {[%clk 0:02:59]} 6. c3 {[%clk 0:03:00]}  Nf6 {[%clk 0:02:56]} 7. d3 {[%clk 0:03:01]}  O-O {[%clk 0:02:56]} 8. Kh1 {[%clk 0:03:01]}  c4 {[%clk 0:02:56]} 9. Be3 {[%clk 0:03:00]}  cxd3 {[%clk 0:02:56]} 10. Bxd3 {[%clk 0:03:01]}  Bg4 {[%clk 0:02:54]} 11. Nbd2 {[%clk 0:03:00]}  Rc8 {[%clk 0:02:53]} 12. h3 {[%clk 0:02:59]}  Bd7 {[%clk 0:02:53]} 13. a4 {[%clk 0:02:53]}  a6 {[%clk 0:02:53]} 14. Qe1 {[%clk 0:02:50]}  Rb8 {[%clk 0:02:53]} 15. Qh4 {[%clk 0:02:48]}  e6 {[%clk 0:02:50]} 16. Ng5 {[%clk 0:02:29]}  h6 {[%clk 0:02:47]} 17. Ngf3 {[%clk 0:02:29]}  d5 {[%clk 0:02:41]} 18. e5 {[%clk 0:02:25]}  Ne8 {[%clk 0:02:40]} 19. Qf2 {[%clk 0:02:22]}  Nc7 {[%clk 0:02:33]} 20. a5 {[%clk 0:02:07]}  Nb5 {[%clk 0:02:31]} 21. Nb3 {[%clk 0:01:59]}  Re8 {[%clk 0:02:29]} 22. Bb6 {[%clk 0:01:55]}  Qc8 {[%clk 0:02:29]} 23. Rac1 {[%clk 0:01:51]}  Bf8 {[%clk 0:02:24]} 24. Nbd4 {[%clk 0:01:50]}  Ncxd4 {[%clk 0:02:20]} 25. cxd4 {[%clk 0:01:47]}  Bc6 {[%clk 0:02:21]} 26. g4 {[%clk 0:01:44]}  Qd7 {[%clk 0:02:05]} 27. f5 {[%clk 0:01:38]}  Rbc8 {[%clk 0:01:42]} 28. fxg6 {[%clk 0:01:34]}  fxg6 {[%clk 0:01:42]} 29. Bxg6 {[%clk 0:01:34]}  Re7 {[%clk 0:01:42]} 30. Nh4 {[%clk 0:01:31]}  Rg7 {[%clk 0:01:41]} 31. Qe3 {[%clk 0:01:17]}  Be7 {[%clk 0:01:35]} 32. Rf6 {[%clk 0:01:10]}  Bxf6 {[%clk 0:00:55]} 33. exf6 {[%clk 0:01:11]}  Rxg6 {[%clk 0:00:48]} 34. Nxg6 {[%clk 0:01:12]}  Kh7 {[%clk 0:00:48]} 35. Ne5 {[%clk 0:01:09]}  Qe8 {[%clk 0:00:48]} 36. Rf1 {[%clk 0:01:02]}  Nd6 {[%clk 0:00:45]} 37. f7 {[%clk 0:00:37]}  Qh8 {[%clk 0:00:41]} 38. Bc5 {[%clk 0:00:36]}  Ne4 {[%clk 0:00:38]} 39. f8=Q {[%clk 0:00:35]}  Rxf8 {[%clk 0:00:36]} 40. Rxf8 {[%clk 0:00:35]} 1-0


[Site "https://www.chess.com"]

[Event "Titled Tuesday Blitz June 20 Early 2023"]
[White "Rastbod, Ali"]
[Black "Nikologorsky, Matfei"]
[WhiteFideId "12567477"]
[BlackFideId "24102474"]
[WhiteElo "2281"]
[BlackElo "2153"]
[Result "1-0"]
[Round "1"]
[TimeControl "180+2"]
[Date "2023.06.20"]
[WhiteClock "0:00:43"]
[BlackClock "0:00:02"]
[Board "119"]

1. e4 {[%clk 0:02:59]}  c5 {[%clk 0:02:58]} 2. g3 {[%clk 0:02:58]}  d5 {[%clk 0:02:57]} 3. exd5 {[%clk 0:02:58]}  Qxd5 {[%clk 0:02:57]} 4. Nf3 {[%clk 0:02:57]}  Nc6 {[%clk 0:02:57]} 5. Nc3 {[%clk 0:02:55]}  Qd8 {[%clk 0:02:53]} 6. Bg2 {[%clk 0:02:54]}  Nf6 {[%clk 0:02:52]} 7. O-O {[%clk 0:02:53]}  e6 {[%clk 0:02:52]} 8. b3 {[%clk 0:02:51]}  Be7 {[%clk 0:02:52]} 9. Bb2 {[%clk 0:02:51]}  O-O {[%clk 0:02:53]} 10. Re1 {[%clk 0:02:52]}  Rb8 {[%clk 0:02:45]} 11. Ne2 {[%clk 0:02:36]}  Qc7 {[%clk 0:02:41]} 12. d4 {[%clk 0:02:36]}  Rd8 {[%clk 0:02:35]} 13. Qc1 {[%clk 0:02:34]}  b6 {[%clk 0:02:01]} 14. dxc5 {[%clk 0:02:25]}  Bxc5 {[%clk 0:02:02]} 15. Bxf6 {[%clk 0:02:24]}  gxf6 {[%clk 0:02:01]} 16. Qh6 {[%clk 0:02:25]}  Bf8 {[%clk 0:01:50]} 17. Qxf6 {[%clk 0:02:23]}  Bg7 {[%clk 0:01:50]} 18. Qg5 {[%clk 0:02:23]}  Qe7 {[%clk 0:01:41]} 19. Qxe7 {[%clk 0:02:20]}  Nxe7 {[%clk 0:01:42]} 20. Rad1 {[%clk 0:02:20]}  Bb7 {[%clk 0:01:42]} 21. c4 {[%clk 0:02:16]}  Nc6 {[%clk 0:01:34]} 22. Ng5 {[%clk 0:02:13]}  h6 {[%clk 0:01:29]} 23. Ne4 {[%clk 0:02:08]}  Nb4 {[%clk 0:01:24]} 24. N4c3 {[%clk 0:01:54]}  Bxg2 {[%clk 0:01:04]} 25. Kxg2 {[%clk 0:01:53]}  Nd3 {[%clk 0:01:05]} 26. Rf1 {[%clk 0:01:53]}  Kf8 {[%clk 0:00:48]} 27. Kf3 {[%clk 0:01:38]}  Ke7 {[%clk 0:00:48]} 28. Ke3 {[%clk 0:01:37]}  Nb4 {[%clk 0:00:47]} 29. f4 {[%clk 0:01:25]}  Nc2+ {[%clk 0:00:34]} 30. Kf2 {[%clk 0:01:24]}  h5 {[%clk 0:00:33]} 31. Rxd8 {[%clk 0:01:21]}  Rxd8 {[%clk 0:00:33]} 32. Rd1 {[%clk 0:01:22]}  Nd4 {[%clk 0:00:31]} 33. Ne4 {[%clk 0:01:08]}  h4 {[%clk 0:00:30]} 34. Nxd4 {[%clk 0:01:05]}  Bxd4+ {[%clk 0:00:28]} 35. Kf3 {[%clk 0:01:06]}  hxg3 {[%clk 0:00:26]} 36. hxg3 {[%clk 0:01:07]}  Bb2 {[%clk 0:00:19]} 37. Rxd8 {[%clk 0:01:06]}  Kxd8 {[%clk 0:00:20]} 38. Nd6 {[%clk 0:01:07]}  f6 {[%clk 0:00:19]} 39. Ke4 {[%clk 0:01:06]}  Kd7 {[%clk 0:00:19]} 40. Nb5 {[%clk 0:01:04]}  a6 {[%clk 0:00:19]} 41. Nd4 {[%clk 0:01:05]}  Kd6 {[%clk 0:00:20]} 42. g4 {[%clk 0:01:02]}  Ba1 {[%clk 0:00:19]} 43. Nc2 {[%clk 0:01:00]}  Bb2 {[%clk 0:00:19]} 44. f5 {[%clk 0:01:01]}  exf5+ {[%clk 0:00:18]} 45. gxf5 {[%clk 0:01:00]}  a5 {[%clk 0:00:18]} 46. Ne3 {[%clk 0:00:58]}  Be5 {[%clk 0:00:17]} 47. Kd3 {[%clk 0:00:54]}  Kc5 {[%clk 0:00:16]} 48. Nc2 {[%clk 0:00:54]}  b5 {[%clk 0:00:16]} 49. cxb5 {[%clk 0:00:54]}  Kxb5 {[%clk 0:00:17]} 50. Ke4 {[%clk 0:00:55]}  a4 {[%clk 0:00:16]} 51. Kd5 {[%clk 0:00:53]}  axb3 {[%clk 0:00:16]} 52. axb3 {[%clk 0:00:54]}  Bb2 {[%clk 0:00:16]} 53. Ke6 {[%clk 0:00:51]}  Kc5 {[%clk 0:00:16]} 54. Ne3 {[%clk 0:00:47]}  Kb4 {[%clk 0:00:16]} 55. Nd5+ {[%clk 0:00:47]}  Kxb3 {[%clk 0:00:16]} 56. Nxf6 {[%clk 0:00:48]}  Kc4 {[%clk 0:00:17]} 57. Nd7 {[%clk 0:00:47]}  Kb5 {[%clk 0:00:16]} 58. Ne5 {[%clk 0:00:47]}  Kb6 {[%clk 0:00:13]} 59. f6 {[%clk 0:00:47]}  Kc7 {[%clk 0:00:14]} 60. f7 {[%clk 0:00:46]}  Ba3 {[%clk 0:00:14]} 61. Ng6 {[%clk 0:00:44]}  Kd8 {[%clk 0:00:14]} 62. Nf4 {[%clk 0:00:42]}  Bb4 {[%clk 0:00:14]} 63. Nd5 {[%clk 0:00:42]}  Ba3 {[%clk 0:00:14]} 64. Ne3 {[%clk 0:00:41]}  Bb4 {[%clk 0:00:11]} 65. Nc4 {[%clk 0:00:41]}  Bc5 {[%clk 0:00:11]} 66. Ne5 {[%clk 0:00:42]}  Kc7 {[%clk 0:00:10]} 67. Ng6 {[%clk 0:00:39]}  Kd8 {[%clk 0:00:10]} 68. Nh4 {[%clk 0:00:39]}  Bb4 {[%clk 0:00:10]} 69. Ng2 {[%clk 0:00:40]}  Ba3 {[%clk 0:00:10]} 70. Ne1 {[%clk 0:00:40]}  Bb4 {[%clk 0:00:10]} 71. Nd3 {[%clk 0:00:41]}  Ba3 {[%clk 0:00:10]} 72. Kf6 {[%clk 0:00:41]}  Bd6 {[%clk 0:00:09]} 73. Kg7 {[%clk 0:00:41]}  Ba3 {[%clk 0:00:07]} 74. Nf2 {[%clk 0:00:41]}  Bb4 {[%clk 0:00:07]} 75. Ne4 {[%clk 0:00:42]}  Ba3 {[%clk 0:00:07]} 76. Kf6 {[%clk 0:00:42]}  Bb4 {[%clk 0:00:07]} 77. Ke6 {[%clk 0:00:42]}  Ba3 {[%clk 0:00:02]} 78. Nd6 {[%clk 0:00:43]} 1-0


[Site "https://www.chess.com"]

[Event "Titled Tuesday Blitz June 20 Early 2023"]
[White "Lopez Del Alamo, Antonio"]
[Black "Ajay Karthikeyan"]
[WhiteFideId "2227339"]
[BlackFideId "35011685"]
[WhiteElo "2175"]
[BlackElo "2321"]
[Result "0-1"]
[Round "1"]
[TimeControl "180+2"]
[Date "2023.06.20"]
[WhiteClock "0:00:12"]
[BlackClock "0:00:56"]
[Board "122"]

1. e4 {[%clk 0:02:55]}  c5 {[%clk 0:02:59]} 2. Nf3 {[%clk 0:02:53]}  d6 {[%clk 0:02:58]} 3. d4 {[%clk 0:02:52]}  cxd4 {[%clk 0:02:59]} 4. Nxd4 {[%clk 0:02:53]}  Nf6 {[%clk 0:02:58]} 5. Nc3 {[%clk 0:02:53]}  a6 {[%clk 0:02:58]} 6. Be2 {[%clk 0:02:53]}  e5 {[%clk 0:02:57]} 7. Nb3 {[%clk 0:02:53]}  Be7 {[%clk 0:02:57]} 8. Be3 {[%clk 0:02:54]}  Be6 {[%clk 0:02:56]} 9. Nd5 {[%clk 0:02:55]}  Nbd7 {[%clk 0:02:54]} 10. Qd3 {[%clk 0:02:54]}  Rc8 {[%clk 0:02:48]} 11. a4 {[%clk 0:02:53]}  O-O {[%clk 0:02:31]} 12. a5 {[%clk 0:02:49]}  Bxd5 {[%clk 0:02:15]} 13. exd5 {[%clk 0:02:49]}  Qc7 {[%clk 0:02:16]} 14. c4 {[%clk 0:02:46]}  e4 {[%clk 0:02:01]} 15. Qd1 {[%clk 0:02:38]}  Ne5 {[%clk 0:01:59]} 16. Rc1 {[%clk 0:02:34]}  Qd7 {[%clk 0:01:48]} 17. Nd4 {[%clk 0:02:25]}  Bd8 {[%clk 0:01:35]} 18. b4 {[%clk 0:02:24]}  Nfg4 {[%clk 0:01:34]} 19. Ne6 {[%clk 0:01:58]}  Nxe3 {[%clk 0:01:24]} 20. Nxf8 {[%clk 0:01:57]}  Nxg2+ {[%clk 0:01:20]} 21. Kf1 {[%clk 0:01:54]}  Qh3 {[%clk 0:01:20]} 22. Rc3 {[%clk 0:00:49]}  Ne3+ {[%clk 0:01:17]} 23. Ke1 {[%clk 0:00:48]}  Qg2 {[%clk 0:01:09]} 24. Rxe3 {[%clk 0:00:39]}  Qxh1+ {[%clk 0:01:08]} 25. Kd2 {[%clk 0:00:40]}  Qxd1+ {[%clk 0:01:04]} 26. Kxd1 {[%clk 0:00:39]}  Kxf8 {[%clk 0:01:01]} 27. Rc3 {[%clk 0:00:36]}  f5 {[%clk 0:00:58]} 28. Kc2 {[%clk 0:00:34]}  b6 {[%clk 0:00:54]} 29. axb6 {[%clk 0:00:31]}  Bxb6 {[%clk 0:00:55]} 30. Kb3 {[%clk 0:00:31]}  a5 {[%clk 0:00:55]} 31. c5 {[%clk 0:00:22]}  axb4 {[%clk 0:00:55]} 32. cxb6 {[%clk 0:00:12]}  bxc3 {[%clk 0:00:56]} 0-1


[Site "https://www.chess.com"]

[Event "Titled Tuesday Blitz June 20 Early 2023"]
[White "Novikova, Galina"]
[Black "Postny, Evgeny"]
[WhiteFideId "4157095"]
[BlackFideId "2804344"]
[WhiteElo "1953"]
[BlackElo "2504"]
[Result "0-1"]
[Round "1"]
[TimeControl "180+2"]
[Date "2023.06.20"]
[WhiteClock "0:00:00"]
[BlackClock "0:00:36"]
[Board "124"]

1. e4 {[%clk 0:03:00]}  c5 {[%clk 0:02:55]} 2. Nf3 {[%clk 0:03:00]}  d6 {[%clk 0:02:55]} 3. d4 {[%clk 0:03:00]}  cxd4 {[%clk 0:02:56]} 4. Nxd4 {[%clk 0:03:00]}  Nf6 {[%clk 0:02:57]} 5. Nc3 {[%clk 0:03:01]}  Nc6 {[%clk 0:02:56]} 6. h3 {[%clk 0:02:59]}  g6 {[%clk 0:02:55]} 7. g4 {[%clk 0:02:57]}  Bg7 {[%clk 0:02:55]} 8. Be3 {[%clk 0:02:58]}  Bd7 {[%clk 0:02:52]} 9. Qd2 {[%clk 0:02:50]}  Rc8 {[%clk 0:02:52]} 10. Nb3 {[%clk 0:02:46]}  Ne5 {[%clk 0:02:48]} 11. O-O-O {[%clk 0:02:44]}  Bc6 {[%clk 0:02:41]} 12. Bd3 {[%clk 0:02:17]}  Nxd3+ {[%clk 0:02:35]} 13. Qxd3 {[%clk 0:02:05]}  Kf8 {[%clk 0:02:32]} 14. g5 {[%clk 0:01:51]}  Nd7 {[%clk 0:02:30]} 15. f4 {[%clk 0:01:51]}  a5 {[%clk 0:02:23]} 16. Bd4 {[%clk 0:01:28]}  e5 {[%clk 0:02:14]} 17. Be3 {[%clk 0:01:25]}  exf4 {[%clk 0:02:05]} 18. Qxd6+ {[%clk 0:01:23]}  Qe7 {[%clk 0:02:06]} 19. Qxf4 {[%clk 0:01:21]}  a4 {[%clk 0:01:48]} 20. Rxd7 {[%clk 0:00:30]}  Bxd7 {[%clk 0:01:44]} 21. Nd4 {[%clk 0:00:15]}  Be5 {[%clk 0:01:34]} 22. Qf2 {[%clk 0:00:13]}  a3 {[%clk 0:01:30]} 23. Nd5 {[%clk 0:00:12]}  axb2+ {[%clk 0:01:31]} 24. Kb1 {[%clk 0:00:12]}  Qd6 {[%clk 0:01:29]} 25. Rf1 {[%clk 0:00:11]}  Be8 {[%clk 0:01:25]} 26. Nb5 {[%clk 0:00:07]}  Qe6 {[%clk 0:01:12]} 27. Bc5+ {[%clk 0:00:07]}  Kg7 {[%clk 0:01:13]} 28. Bd4 {[%clk 0:00:06]}  Rf8 {[%clk 0:01:06]} 29. Bxe5+ {[%clk 0:00:06]}  Qxe5 {[%clk 0:01:07]} 30. Nd4 {[%clk 0:00:06]}  Ba4 {[%clk 0:00:51]} 31. Qe3 {[%clk 0:00:02]}  Rc4 {[%clk 0:00:46]} 32. Rd1 {[%clk 0:00:02]}  Re8 {[%clk 0:00:40]} 33. Re1 {[%clk 0:00:00]}  Qxd4 {[%clk 0:00:36]} 0-1


[Site "https://www.chess.com"]